bitfinex/quotes_BTCUSD_20220120
["timestamp","ask_amount","ask_price","bid_price","bid_amount"]
[1642682649758,0.4230191,41986.0,41982.0,0.69061902]
[1642682649960,0.00121239,41985.0,41982.0,0.69061902]
[1642682650160,0.00121239,41985.0,41983.0,6.876e-05]
[1642682650903,0.4470191,41986.0,41983.0,6.876e-05]
[1642682651204,0.44823147,41986.0,41983.0,6.876e-05]
[1642682651701,0.42423147,41986.0,41983.0,6.876e-05]
[1642682652201,0.4230191,41986.0,41983.0,6.876e-05]
[1642682652401,0.4480191,41986.0,41983.0,0.00606876]
[1642682653503,0.4230191,41986.0,41983.0,6.876e-05]
[1642682653906,0.4230191,41986.0,41979.0,0.00013752]
[1642682654352,0.4510191,41986.0,41983.0,0.002]
[1642682654754,0.40707378,41984.0,41983.0,0.002]
[1642682655155,0.40707378,41984.0,41983.0,0.00206876]
[1642682655456,0.40707378,41984.0,41983.0,6.876e-05]
[1642682655457,0.79065178,41984.0,41983.0,6.876e-05]
[1642682655659,0.43486114,41984.0,41983.0,6.876e-05]
[1642682655861,1.33246114,41984.0,41983.0,6.876e-05]
[1642682656055,1.43246114,41984.0,41972.0,0.00025785]
[1642682656254,0.20350149,41973.0,41972.0,0.00025785]
[1642682656455,0.4024123,41973.0,41972.0,0.38383585]
[1642682656655,0.4024123,41973.0,41972.0,0.00025785]
[1642682656855,0.4024123,41973.0,41972.0,0.38383585]
[1642682657058,0.4024123,41973.0,41972.0,0.383578]
[1642682657257,0.4024123,41973.0,41972.0,0.38383585]
[1642682657455,0.4024123,41973.0,41972.0,0.00025785]
[1642682657955,0.4024123,41973.0,41969.0,0.00030942]
[1642682658206,0.4024123,41973.0,41970.0,0.383578]
[1642682658413,0.4164123,41973.0,41972.0,0.011]
[1642682658809,0.4164123,41973.0,41972.0,0.01125785]
[1642682659009,0.21750149,41973.0,41972.0,0.01125785]
[1642682659210,0.014,41973.0,41972.0,0.01125785]
[1642682659709,0.00094798,41976.0,41972.0,0.00025785]
[1642682660111,0.00094798,41976.0,41969.0,0.00030942]
[1642682660112,0.18784345,41975.0,41969.0,0.00030942]
[1642682660317,0.18784345,41975.0,41972.0,0.008]
[1642682660710,0.18784345,41975.0,41973.0,0.00024066]
[1642682660917,0.01494796,41976.0,41973.0,0.00024066]
[1642682661711,0.00094796,41976.0,41973.0,0.00024066]
[1642682661958,0.00094796,41976.0,41975.0,0.909559]
[1642682662164,0.00094804,41977.0,41975.0,2.2336186]
[1642682662359,0.00094804,41977.0,41976.0,0.70472646]
[1642682662558,0.00094804,41977.0,41976.0,0.70491555]
[1642682662959,0.00094804,41977.0,41976.0,1.31186449]
[1642682663159,0.00094804,41977.0,41976.0,0.99071603]
[1642682663360,0.21994886,41981.0,41976.0,0.38376709]
[1642682663361,0.0009808,41979.0,41976.0,0.38376709]
[1642682663760,0.0009808,41979.0,41977.0,0.0001719]
[1642682664360,0.0009808,41979.0,41977.0,0.006]
[1642682664560,0.00098079,41980.0,41977.0,0.006]
[1642682664760,0.00098079,41980.0,41978.0,0.00015471]
[1642682665604,0.27092964,41981.0,41978.0,0.00015471]
[1642682666004,0.27092964,41981.0,41974.0,0.00022347]
[1642682666406,0.27092964,41981.0,41978.0,0.006]
[1642682666806,0.00099522,41980.0,41979.0,0.00013752]
[1642682668108,0.26994886,41981.0,41974.0,0.30407488]
[1642682668309,0.26994886,41981.0,41979.0,0.004]
[1642682668712,0.26994886,41981.0,41980.0,0.00012033]
[1642682669961,0.05,41981.0,41980.0,0.00012033]
[1642682670158,0.05,41981.0,41974.0,0.00022347]
[1642682670358,0.24794697,41982.0,41974.0,0.00022347]
[1642682670359,0.27836475,41980.0,41974.0,0.00022347]
[1642682670559,0.05,41980.0,41974.0,0.00022347]
[1642682670757,0.29695172,41982.0,41974.0,0.00022347]
[1642682671561,0.22161636,41981.0,41974.0,0.00022347]
[1642682671761,0.00098924,41980.0,41974.0,0.00022347]
[1642682671962,0.19779799,41980.0,41974.0,0.00022347]
[1642682672362,0.19779799,41980.0,41974.0,0.00822347]
[1642682672563,0.24779799,41980.0,41974.0,0.00822347]
[1642682672764,0.00098925,41979.0,41974.0,0.00822347]
[1642682673407,0.00092587,41979.0,41974.0,0.00822347]
[1642682673613,0.00092587,41979.0,41974.0,0.00022347]
[1642682673805,0.24680875,41980.0,41974.0,0.00022347]
[1642682674012,2.13630285,41979.0,41971.0,0.00027504]
[1642682674407,0.22569283,41975.0,41974.0,0.007]
[1642682674806,0.22569283,41975.0,41974.0,0.00722347]
[1642682675706,0.22569283,41975.0,41974.0,0.00022347]
[1642682676106,0.22569283,41975.0,41970.0,0.00029223]
[1642682676307,0.22569283,41975.0,41971.0,0.383578]
[1642682676512,0.22569283,41975.0,41974.0,0.013]
[1642682676958,0.22569283,41975.0,41974.0,0.01322347]
[1642682677558,0.22569283,41975.0,41974.0,0.00022347]
[1642682677960,0.17597086,41973.0,41970.0,0.00029223]
[1642682678171,0.22569283,41975.0,41971.0,0.383578]
[1642682678358,0.22569283,41975.0,41974.0,0.011]
[1642682678758,0.22569283,41975.0,41974.0,0.01122347]
[1642682679163,0.40099314,41975.0,41974.0,0.01122347]
[1642682679660,0.22569283,41975.0,41974.0,0.30022347]
[1642682680459,0.22569283,41975.0,41974.0,0.31122347]
[1642682681713,0.22569283,41975.0,41974.0,0.30022347]
[1642682682409,0.22569283,41975.0,41974.0,0.31122347]
[1642682682608,0.22569283,41975.0,41974.0,0.01122347]
[1642682683708,0.22569283,41975.0,41974.0,0.30022347]
[1642682684213,0.21770336,41977.0,41974.0,0.30022347]
[1642682684459,0.21770336,41977.0,41974.0,0.31122347]
[1642682684757,0.21864483,41977.0,41974.0,0.31122347]
[1642682684959,0.21770336,41977.0,41974.0,0.31122347]
[1642682685158,0.00094147,41977.0,41974.0,0.31122347]
[1642682685361,0.00094147,41977.0,41974.0,0.37078647]
[1642682685559,0.00094147,41977.0,41975.0,0.68628159]
[1642682685761,0.00094147,41977.0,41976.0,1.16878064]
[1642682686059,0.51819469,41983.0,41976.0,1.55254773]
[1642682686060,0.00100233,41978.0,41976.0,1.55254773]
[1642682686260,0.00100233,41978.0,41977.0,1.40650608]
[1642682686459,0.00100233,41978.0,41977.0,1.40667798]
[1642682686659,0.00100233,41978.0,41977.0,1.38966099]
[1642682687360,0.00100231,41980.0,41977.0,1.44743523]
[1642682687666,0.00100231,41980.0,41979.0,0.85]
[1642682687861,0.00100231,41980.0,41979.0,3.00822837]
[1642682688108,0.00100231,41980.0,41979.0,1.28760005]
[1642682688508,0.00100228,41982.0,41979.0,1.50021893]
[1642682688709,0.00100228,41982.0,41980.0,0.66654561]
[1642682688910,0.00100228,41982.0,41981.0,1.131178]
[1642682689108,0.00100228,41982.0,41981.0,1.13128114]
[1642682689515,0.19607377,41984.0,41981.0,0.43128114]
[1642682689709,0.40187879,41984.0,41981.0,0.43128114]
[1642682689910,0.40187879,41984.0,41982.0,8.595e-05]
[1642682690508,0.40089026,41984.0,41982.0,0.01]
[1642682690908,0.40089026,41984.0,41983.0,6.876e-05]
[1642682691509,0.40089026,41984.0,41983.0,0.00144099]
[1642682691956,0.22745585,41986.0,41983.0,0.00144099]
[1642682692455,0.22745585,41986.0,41983.0,0.00844099]
[1642682692852,0.22646734,41986.0,41983.0,0.00844099]
[1642682693052,0.22646734,41986.0,41984.0,0.383578]
[1642682694452,0.00089738,41987.0,41984.0,0.391578]
[1642682695254,0.20621713,41990.0,41984.0,0.008]
[1642682695453,0.19652163,41987.0,41984.0,0.008]
[1642682695708,0.19652163,41987.0,41983.0,0.12054099]
[1642682696305,0.19652163,41987.0,41984.0,0.383578]
[1642682696705,0.19741901,41987.0,41984.0,0.383578]
[1642682697706,0.19652163,41987.0,41984.0,0.383578]
[1642682698110,0.00092588,41988.0,41987.0,0.85007275]
[1642682698409,0.00092588,41988.0,41987.0,1.62345332]
[1642682698913,6.876e-05,41991.0,41987.0,1.67105332]
[1642682699110,6.876e-05,41991.0,41989.0,0.28011049]
[1642682699111,0.00092591,41990.0,41989.0,0.28011049]
[1642682699358,0.00092591,41990.0,41989.0,1.21882615]
[1642682700153,6.876e-05,41991.0,41989.0,0.71882615]
[1642682700354,6.876e-05,41991.0,41990.0,0.98529782]
[1642682700755,6.876e-05,41991.0,41990.0,0.68529782]
[1642682700952,6.876e-05,41991.0,41990.0,0.383578]
[1642682701352,6.876e-05,41991.0,41989.0,0.014]
[1642682701955,6.876e-05,41991.0,41987.0,0.04767275]
[1642682702660,0.00098572,41991.0,41988.0,0.383578]
[1642682703310,0.00092068,41991.0,41988.0,0.383578]
[1642682703706,3.72e-06,41991.0,41988.0,0.383578]
[1642682704507,3.72e-06,41991.0,41988.0,0.395578]
[1642682704910,0.228947,41990.0,41988.0,0.395578]
[1642682705312,0.228947,41990.0,41988.0,0.012]
[1642682705707,0.228947,41990.0,41987.0,7.275e-05]
[1642682706308,0.22462525,41989.0,41987.0,7.275e-05]
[1642682706507,0.22462525,41989.0,41987.0,0.01007275]
[1642682707778,0.22462525,41989.0,41987.0,7.275e-05]
[1642682708478,0.22462525,41989.0,41987.0,0.00407275]
[1642682708479,1.033578,41988.0,41987.0,0.00407275]
[1642682708877,1.033578,41988.0,41987.0,0.00413779]
[1642682709279,1.38737436,41988.0,41987.0,0.00413779]
[1642682709479,1.4160332,41988.0,41987.0,0.00413779]
[1642682709678,1.4160332,41988.0,41987.0,0.00013779]
[1642682709879,1.09089568,41988.0,41987.0,0.00013779]
[1642682711813,0.49089568,41988.0,41987.0,0.00013779]
[1642682712214,0.44089568,41988.0,41987.0,0.00013779]
[1642682714017,0.49089568,41988.0,41987.0,0.00013779]
[1642682714218,0.49089568,41988.0,41987.0,7.704e-05]
[1642682715254,0.76296914,41988.0,41987.0,7.704e-05]
[1642682718912,0.10731768,41988.0,41987.0,7.704e-05]
[1642682719214,0.05731768,41988.0,41987.0,7.704e-05]
[1642682720013,0.05731768,41988.0,41987.0,0.38365504]
[1642682720214,0.05731768,41988.0,41987.0,1.19911039]
[1642682720522,0.05731768,41988.0,41987.0,1.37102039]
[1642682720715,0.05731768,41988.0,41987.0,1.10006098]
[1642682720920,0.05731768,41988.0,41987.0,1.14766098]
[1642682721114,0.05731768,41988.0,41987.0,1.49766098]
[1642682721415,0.05731768,41988.0,41987.0,0.48996621]
[1642682721616,0.38307892,41988.0,41987.0,0.0114347]
[1642682721871,0.38307892,41988.0,41987.0,0.0014347]
[1642682721872,0.10731768,41988.0,41987.0,0.0014347]
[1642682722070,0.66075609,41988.0,41987.0,0.0014347]
[1642682722267,0.71075609,41988.0,41987.0,0.0014347]
[1642682722467,1.48241941,41988.0,41987.0,0.0044347]
[1642682723069,1.03840635,41988.0,41987.0,0.0044347]
[1642682723869,1.03840635,41988.0,41987.0,0.0014347]
[1642682724170,1.3118793,41988.0,41987.0,0.0014347]
[1642682726608,1.3118793,41988.0,41987.0,7.704e-05]
[1642682726808,0.98422904,41988.0,41987.0,7.704e-05]
[1642682731860,1.28013621,41988.0,41987.0,7.704e-05]
[1642682732464,0.71075609,41988.0,41987.0,7.704e-05]
[1642682732661,0.32717809,41988.0,41987.0,7.704e-05]
[1642682733515,0.53466687,41988.0,41987.0,7.704e-05]
[1642682733719,0.71075609,41988.0,41987.0,7.704e-05]
[1642682734115,0.32717809,41988.0,41987.0,7.704e-05]
[1642682734514,0.32717809,41988.0,41987.0,0.00407704]
[1642682736619,0.10731768,41988.0,41987.0,0.00607704]
[1642682737267,0.05731768,41988.0,41987.0,0.00607704]
[1642682737462,0.10731768,41988.0,41987.0,0.00607704]
[1642682737662,0.05731768,41988.0,41987.0,0.00607704]
[1642682737865,0.05731768,41988.0,41987.0,7.704e-05]
[1642682738062,0.05731768,41988.0,41987.0,0.60007704]
[1642682738664,0.05731768,41988.0,41987.0,0.60807704]
[1642682739062,0.05731768,41988.0,41987.0,0.00807704]
[1642682739864,0.05731768,41988.0,41987.0,7.704e-05]
[1642682740707,0.05731768,41988.0,41987.0,0.00807704]
[1642682741906,0.05731768,41988.0,41987.0,7.704e-05]
[1642682742508,0.05731768,41988.0,41987.0,0.00807704]
[1642682742908,0.66119899,41988.0,41987.0,0.00807704]
[1642682743110,0.71119899,41988.0,41987.0,0.00807704]
[1642682744466,0.10731768,41988.0,41987.0,7.704e-05]
[1642682744665,0.10731768,41988.0,41987.0,0.00707704]
[1642682744865,0.05731768,41988.0,41987.0,0.00707704]
[1642682745766,0.05731768,41988.0,41987.0,7.704e-05]
[1642682746574,0.05731768,41988.0,41987.0,0.00707704]
[1642682747769,0.05731768,41988.0,41987.0,7.704e-05]
[1642682747967,0.05718299,41988.0,41987.0,7.704e-05]
[1642682748206,0.02865884,41988.0,41987.0,7.704e-05]
[1642682748408,0.05718299,41988.0,41987.0,7.704e-05]
[1642682748609,0.05718299,41988.0,41987.0,0.00707704]
[1642682750007,0.05718299,41988.0,41987.0,7.704e-05]
[1642682750608,0.05718299,41988.0,41987.0,0.00707704]
[1642682751972,0.05718299,41988.0,41987.0,7.704e-05]
[1642682752573,0.05718299,41988.0,41987.0,0.00707704]
[1642682753775,0.05718299,41988.0,41987.0,7.704e-05]
[1642682754579,0.05718299,41988.0,41987.0,0.00707704]
[1642682754778,0.05192498,41988.0,41987.0,0.00707704]
[1642682754978,0.02852415,41988.0,41987.0,0.00707704]
[1642682755479,0.05192498,41988.0,41987.0,0.00707704]
[1642682755912,0.05192498,41988.0,41987.0,7.704e-05]
[1642682756712,0.05192498,41988.0,41987.0,0.00307704]
[1642682757915,0.05192498,41988.0,41987.0,7.704e-05]
[1642682758616,0.05192498,41988.0,41987.0,0.00407704]
[1642682759862,0.05192498,41988.0,41987.0,7.704e-05]
[1642682760659,0.05192498,41988.0,41987.0,0.00407704]
[1642682761859,0.05192498,41988.0,41987.0,7.704e-05]
[1642682762665,0.05192498,41988.0,41987.0,0.00607704]
[1642682763913,0.05192498,41988.0,41987.0,7.704e-05]
[1642682764513,0.29192498,41988.0,41987.0,7.704e-05]
[1642682764719,0.29192498,41988.0,41987.0,0.00607704]
[1642682766015,0.29192498,41988.0,41987.0,7.704e-05]
[1642682766617,0.29192498,41988.0,41987.0,0.00607704]
[1642682767966,0.29192498,41988.0,41987.0,7.704e-05]
[1642682768565,0.60752186,41988.0,41987.0,7.704e-05]
[1642682768766,0.99109986,41988.0,41987.0,0.00407704]
[1642682769970,0.99109986,41988.0,41987.0,7.704e-05]
[1642682771106,0.67550298,41988.0,41987.0,7.704e-05]
[1642682771306,0.9667959,41988.0,41987.0,7.704e-05]
[1642682771506,0.893291,41987.0,41981.0,0.60206865]
[1642682771709,0.55981707,41988.0,41981.0,0.60206865]
[1642682771908,0.24,41988.0,41982.0,8.595e-05]
[1642682772108,0.02340083,41984.0,41982.0,8.595e-05]
[1642682772310,0.02340083,41984.0,41983.0,0.383578]
[1642682772709,0.02340083,41984.0,41983.0,0.38364676]
[1642682774757,0.02340083,41984.0,41983.0,0.39564676]
[1642682775960,0.02340083,41984.0,41983.0,0.01206876]
[1642682776660,0.02340083,41984.0,41983.0,0.01306876]
[1642682777667,0.05192498,41984.0,41983.0,0.01306876]
[1642682777863,0.05192498,41984.0,41983.0,6.876e-05]
[1642682778316,0.05192498,41984.0,41980.0,0.12163458]
[1642682778516,0.05192498,41984.0,41983.0,6.876e-05]
[1642682778716,0.02852415,41984.0,41983.0,0.012]
[1642682778919,0.05192498,41984.0,41983.0,0.012]
[1642682779116,0.05192498,41984.0,41983.0,0.01206876]
[1642682779918,0.05192498,41984.0,41983.0,6.876e-05]
[1642682780821,0.05192498,41984.0,41983.0,0.01206876]
[1642682781874,0.05192498,41984.0,41983.0,6.876e-05]
[1642682782677,0.05192498,41984.0,41983.0,0.01206876]
[1642682783978,0.05192498,41984.0,41983.0,6.876e-05]
[1642682784680,0.05192498,41984.0,41983.0,0.01106876]
[1642682785715,0.05192498,41984.0,41983.0,0.39464676]
[1642682785911,0.05192498,41984.0,41983.0,0.38364676]
[1642682786616,0.05192498,41984.0,41983.0,0.99100647]
[1642682786815,0.05192498,41984.0,41983.0,0.51615629]
[1642682787314,0.05192498,41984.0,41983.0,2.23686539]
[1642682787914,0.05192498,41984.0,41983.0,2.22586539]
[1642682788723,0.05192498,41984.0,41983.0,2.23886539]
[1642682789956,0.05192498,41984.0,41983.0,2.22586539]
[1642682790358,0.05192498,41984.0,41983.0,1.1124645]
[1642682790558,0.05192498,41984.0,41983.0,1.51774516]
[1642682790765,0.05192498,41984.0,41983.0,2.40028552]
[1642682790959,0.05192498,41984.0,41983.0,1.6917609]
[1642682791361,0.05192498,41984.0,41983.0,2.23825276]
[1642682791563,0.05192498,41984.0,41983.0,0.51715629]
[1642682791962,0.05192498,41984.0,41983.0,0.50515629]
[1642682792162,0.05192498,41984.0,41983.0,1.2136547]
[1642682792363,0.05192498,41984.0,41983.0,0.50515629]
[1642682792762,0.05192498,41984.0,41983.0,0.39564676]
[1642682793513,0.05192498,41984.0,41983.0,0.51715591]
[1642682793709,0.05192498,41984.0,41983.0,1.12447669]
[1642682793911,0.05192498,41984.0,41983.0,1.11247669]
[1642682795015,0.05192498,41984.0,41983.0,1.12547669]
[1642682795212,0.05184723,41984.0,41983.0,1.12547669]
[1642682795413,0.02340083,41984.0,41983.0,1.12547669]
[1642682795612,0.05184723,41984.0,41983.0,1.12547669]
[1642682796018,0.05184723,41984.0,41983.0,0.38364676]
[1642682796712,0.05184723,41984.0,41983.0,0.39664676]
[1642682797563,0.05184723,41984.0,41983.0,0.51815676]
[1642682797764,0.05184723,41984.0,41983.0,1.1254791]
[1642682798165,0.05184723,41984.0,41983.0,1.1124791]
[1642682798668,0.05184723,41984.0,41983.0,1.1254791]
[1642682798865,0.05184723,41984.0,41983.0,0.51815676]
[1642682799264,0.05184723,41984.0,41983.0,0.39664676]
[1642682800067,0.05184723,41984.0,41983.0,0.99097859]
[1642682800265,0.05184723,41984.0,41983.0,0.50516227]
[1642682800464,0.05184723,41984.0,41983.0,0.38364676]
[1642682800712,0.05184723,41984.0,41983.0,0.39664676]
[1642682801513,0.05184723,41984.0,41983.0,0.39801004]
[1642682801913,0.05184723,41984.0,41983.0,0.38501004]
[1642682802415,0.05184723,41984.0,41983.0,0.38591004]
[1642682802815,0.05184723,41984.0,41983.0,0.39691004]
[1642682804117,0.05184723,41984.0,41983.0,0.38591004]
[1642682804360,0.05184723,41984.0,41983.0,1.11475531]
[1642682804761,0.05184723,41984.0,41983.0,1.12675531]
[1642682805962,0.05184723,41984.0,41983.0,1.11475531]
[1642682806567,0.05184723,41984.0,41983.0,1.11339203]
[1642682806767,0.05184723,41984.0,41983.0,1.12639203]
[1642682807165,0.05184723,41984.0,41983.0,0.5190602]
[1642682807365,0.05184723,41984.0,41983.0,1.00487859]
[1642682807664,0.05184723,41984.0,41983.0,0.01396876]
[1642682808528,0.05184723,41984.0,41983.0,0.00096876]
[1642682808529,0.05104129,41984.0,41983.0,0.00096876]
[1642682808730,0.05104129,41984.0,41983.0,0.01296876]
[1642682808931,0.0284464,41984.0,41983.0,0.01296876]
[1642682809134,0.05104129,41984.0,41983.0,0.01296876]
[1642682809929,0.05104129,41984.0,41983.0,0.00096876]
[1642682810831,0.05104129,41984.0,41983.0,0.01296876]
[1642682811861,0.05104129,41984.0,41983.0,0.39654676]
[1642682812059,0.05104129,41984.0,41983.0,0.38454676]
[1642682812460,0.05104129,41984.0,41983.0,0.00096876]
[1642682812861,0.05104129,41984.0,41983.0,0.01196876]
[1642682814060,0.05104129,41984.0,41983.0,0.00096876]
[1642682814861,0.05104129,41984.0,41983.0,0.01196876]
[1642682815914,0.05104129,41984.0,41983.0,0.00096876]
[1642682816819,0.05104129,41984.0,41983.0,0.01196876]
[1642682818016,0.05104129,41984.0,41983.0,0.00096876]
[1642682818816,0.05104129,41984.0,41983.0,0.01296876]
[1642682820064,0.05104129,41984.0,41983.0,0.00096876]
[1642682820864,0.05104129,41984.0,41983.0,0.01296876]
[1642682821466,0.05104129,41984.0,41983.0,0.01478647]
[1642682822070,0.05104129,41984.0,41983.0,0.00278647]
[1642682822765,0.05104129,41984.0,41983.0,0.01478647]
[1642682824022,0.05104129,41984.0,41983.0,0.00278647]
[1642682824921,0.05104129,41984.0,41983.0,0.01378647]
[1642682825123,0.05104129,41984.0,41983.0,0.39736447]
[1642682825723,0.05104129,41984.0,41983.0,1.0046963]
[1642682825922,0.05104129,41984.0,41983.0,0.51887781]
[1642682826123,0.05104129,41984.0,41983.0,1.41570766]
[1642682826325,0.05104129,41984.0,41983.0,2.54331104]
[1642682826522,0.05104129,41984.0,41983.0,2.54149333]
[1642682826725,0.05104129,41984.0,41983.0,0.5060601]
[1642682826974,0.05104129,41984.0,41983.0,0.5180601]
[1642682827770,0.05104129,41984.0,41983.0,1.12437476]
[1642682828171,0.05104129,41984.0,41983.0,0.5180601]
[1642682828469,0.05104129,41984.0,41983.0,0.39654676]
[1642682828875,0.05104129,41984.0,41983.0,0.01296876]
[1642682830072,0.05104129,41984.0,41983.0,0.00096876]
[1642682830918,0.05104129,41984.0,41983.0,0.01396876]
[1642682832118,0.05104129,41984.0,41983.0,0.00096876]
[1642682832917,0.05104129,41984.0,41983.0,0.01296876]
[1642682834119,0.05104129,41984.0,41983.0,0.00096876]
[1642682834767,0.05104129,41984.0,41983.0,0.01296876]
[1642682836070,0.05104129,41984.0,41983.0,0.00096876]
[1642682836972,0.05104129,41984.0,41983.0,0.01296876]
[1642682838126,0.05104129,41984.0,41983.0,0.00096876]
[1642682838532,0.43461929,41984.0,41983.0,0.00096876]
[1642682838925,0.43461929,41984.0,41983.0,0.00496876]
[1642682838926,0.78461929,41984.0,41983.0,0.00496876]
[1642682839129,0.78461929,41984.0,41983.0,0.00483415]
[1642682839327,0.85,41983.0,41973.0,0.60631466]
[1642682839531,0.0476,41982.0,41971.0,0.0001]
[1642682839727,0.0476,41982.0,41974.0,0.00015471]
[1642682839728,0.32576124,41981.0,41974.0,0.00015471]
[1642682839931,0.05231974,41978.0,41974.0,0.00015471]
[1642682840126,0.97454458,41977.0,41974.0,0.00015471]
[1642682840328,1.92137224,41976.0,41974.0,0.00015471]
[1642682840534,0.690891,41975.0,41974.0,0.00015471]
[1642682840827,0.766741,41975.0,41974.0,0.00615471]
[1642682841026,1.12084838,41975.0,41974.0,0.00615471]
[1642682841866,1.70051355,41975.0,41974.0,0.00615471]
[1642682842066,1.70051355,41975.0,41974.0,0.00015471]
[1642682842365,1.34640617,41975.0,41972.0,0.00018909]
[1642682842968,1.35540617,41975.0,41972.0,0.01118909]
[1642682843469,0.42423927,41974.0,41973.0,0.0001719]
[1642682843667,1.15914501,41974.0,41973.0,0.0001719]
[1642682844268,0.73490574,41974.0,41973.0,0.0001719]
[1642682844470,0.73490574,41974.0,41972.0,0.00018909]
[1642682844668,0.51273871,41975.0,41972.0,0.00018909]
[1642682844669,0.64033745,41973.0,41972.0,0.00018909]
[1642682846821,0.65233745,41973.0,41972.0,0.00018909]
[1642682848626,0.293291,41973.0,41972.0,0.00018909]
[1642682848829,0.305291,41973.0,41972.0,0.00618909]
[1642682849669,0.63105224,41973.0,41972.0,0.00618909]
[1642682850063,0.63105224,41973.0,41972.0,0.00018909]
[1642682850064,0.340891,41973.0,41972.0,0.00018909]
[1642682850463,0.3693374,41973.0,41972.0,0.00018909]
[1642682850664,1.04193229,41973.0,41972.0,0.00018909]
[1642682850865,1.05393229,41973.0,41972.0,0.00018909]
[1642682851267,1.15393229,41973.0,41972.0,0.00018909]
[1642682851467,1.15393229,41973.0,41972.0,0.00156783]
[1642682851666,1.47097028,41973.0,41972.0,0.00156783]
[1642682851868,2.41693229,41973.0,41972.0,6.783e-05]
[1642682852065,1.14193229,41973.0,41972.0,6.783e-05]
[1642682852266,1.46910271,41973.0,41972.0,6.783e-05]
[1642682852967,1.48010271,41973.0,41972.0,6.783e-05]
[1642682854023,1.46910271,41973.0,41972.0,6.783e-05]
[1642682854824,1.48110271,41973.0,41972.0,6.783e-05]
[1642682855229,2.81817271,41973.0,41972.0,6.783e-05]
[1642682856028,2.83006271,41973.0,41972.0,6.783e-05]
[1642682856628,2.83006271,41973.0,41971.0,0.0001]
[1642682856865,2.03075327,41972.0,41971.0,0.0001]
[1642682857067,2.21868967,41972.0,41971.0,0.0001]
[1642682857267,2.24128456,41972.0,41971.0,0.0001]
[1642682858873,2.25428456,41972.0,41971.0,0.0001]
[1642682860069,0.99128456,41972.0,41971.0,0.0001]
[1642682860269,0.97828456,41972.0,41971.0,0.0001]
[1642682860918,0.99028456,41972.0,41971.0,0.0001]
[1642682861425,0.97839456,41972.0,41971.0,0.0001]
[1642682862216,0.96639456,41972.0,41971.0,0.0001]
[1642682863016,0.59621929,41972.0,41971.0,0.0001]
[1642682864118,0.58221929,41972.0,41971.0,0.0001]
[1642682864573,0.48221929,41972.0,41971.0,0.0001]
[1642682864776,0.43461929,41972.0,41971.0,0.0001]
[1642682865074,0.44961929,41972.0,41971.0,0.0001]
[1642682866073,0.43461929,41972.0,41971.0,0.0001]
[1642682867077,0.49661929,41972.0,41971.0,0.0001]
[1642682868120,0.43461929,41972.0,41971.0,0.0001]
[1642682868923,0.49661929,41972.0,41971.0,0.0001]
[1642682870226,0.43461929,41972.0,41971.0,0.0001]
[1642682871129,0.44961929,41972.0,41971.0,0.0001]
[1642682872174,0.43461929,41972.0,41971.0,0.0001]
[1642682872871,0.76340716,41972.0,41971.0,0.0001]
[1642682873069,0.76313466,41972.0,41971.0,0.0001]
[1642682874071,0.86313466,41972.0,41971.0,0.0001]
[1642682874273,0.83013466,41972.0,41971.0,0.0001]
[1642682874871,0.85302466,41972.0,41971.0,0.0001]
[1642682876318,0.84202466,41972.0,41971.0,0.0001]
[1642682876926,0.85402466,41972.0,41971.0,0.0001]
[1642682877120,0.74213466,41972.0,41971.0,0.0001]
[1642682878121,0.73013466,41972.0,41971.0,0.0001]
[1642682878620,0.83013466,41972.0,41971.0,0.0001]
[1642682878824,0.84202466,41972.0,41971.0,0.0001]
[1642682879123,0.85402466,41972.0,41971.0,0.0001]
[1642682879968,0.90402466,41972.0,41964.0,0.0011125]
[1642682880170,0.18197019,41967.0,41962.0,0.12044932]
[1642682880371,0.46302969,41967.0,41965.0,0.00012033]
[1642682880567,0.33301148,41967.0,41965.0,0.00012033]
[1642682880768,0.33301148,41967.0,41965.0,0.05970675]
[1642682880968,0.25001148,41967.0,41965.0,0.05970675]
[1642682881172,0.25001148,41967.0,41966.0,0.00010314]
[1642682882268,0.23301148,41967.0,41966.0,0.00010314]
[1642682882969,0.23901148,41967.0,41966.0,0.00010314]
[1642682884226,0.23301148,41967.0,41966.0,0.00010314]
[1642682884826,0.52729097,41967.0,41966.0,0.00010314]
[1642682885027,0.53529097,41967.0,41966.0,0.00010314]
[1642682885228,0.91897997,41967.0,41966.0,0.00010314]
[1642682885425,0.91897997,41967.0,41964.0,0.00111053]
[1642682885628,0.53529097,41967.0,41964.0,0.00111053]
[1642682885827,0.48424968,41967.0,41964.0,0.00111053]
[1642682886027,0.05104129,41966.0,41964.0,0.00111053]
[1642682886229,0.31508477,41965.0,41963.0,0.00015471]
[1642682886428,0.31508477,41965.0,41963.0,0.00126525]
[1642682886870,0.31508477,41965.0,41964.0,0.00013752]
[1642682887071,0.32308477,41965.0,41964.0,0.00013752]
[1642682888070,0.32308477,41965.0,41963.0,0.00015471]
[1642682888270,0.31508477,41965.0,41963.0,0.00015471]
[1642682888871,0.36508477,41965.0,41963.0,0.00015471]
[1642682889072,0.28712377,41964.0,41963.0,0.00015471]
[1642682889371,0.52139524,41964.0,41963.0,0.00015471]
[1642682890173,0.52139524,41964.0,41962.0,0.0001719]
[1642682890373,0.30062656,41963.0,41962.0,0.0001719]
[1642682891423,0.35166785,41963.0,41962.0,0.0001719]
[1642682894872,0.35166785,41963.0,41962.0,9.677e-05]
[1642682895078,0.36066785,41963.0,41962.0,9.677e-05]
[1642682896274,0.35166785,41963.0,41962.0,9.677e-05]
[1642682896476,0.45166785,41963.0,41962.0,9.677e-05]
[1642682897076,0.46266785,41963.0,41962.0,9.677e-05]
[1642682897275,0.86026785,41963.0,41962.0,9.677e-05]
[1642682897477,1.24395685,41963.0,41962.0,9.677e-05]
[1642682898120,0.89389504,41963.0,41962.0,9.677e-05]
[1642682898324,0.88289504,41963.0,41962.0,9.677e-05]
[1642682898721,0.39920604,41963.0,41962.0,9.677e-05]
[1642682898923,0.09864129,41963.0,41962.0,9.677e-05]
[1642682899121,0.40240879,41963.0,41962.0,9.677e-05]
[1642682901026,0.35380879,41963.0,41962.0,9.677e-05]
[1642682901869,0.45380879,41963.0,41962.0,9.677e-05]
[1642682902073,0.84289,41962.0,41960.0,0.00111038]
[1642682902269,0.32855331,41961.0,41960.0,0.00111038]
[1642682902469,0.75984231,41961.0,41960.0,0.00111038]
[1642682902668,0.85984231,41961.0,41960.0,0.00111038]
[1642682902873,0.64289,41960.0,41954.0,0.00789446]
[1642682903075,0.64289,41960.0,41954.0,0.00345226]
[1642682903076,0.46022422,41959.0,41954.0,0.00345226]
[1642682903270,0.73154285,41958.0,41957.0,8.596e-05]
[1642682903469,0.77914285,41958.0,41957.0,8.596e-05]
[1642682905075,0.79114285,41958.0,41957.0,8.596e-05]
[1642682906318,0.77914285,41958.0,41957.0,8.596e-05]
[1642682906921,0.85,41957.0,41950.0,0.5744024]
[1642682907123,0.0476,41956.0,41950.0,0.5744024]
[1642682907321,0.0476,41956.0,41952.0,8.595e-05]
[1642682907322,0.34730423,41955.0,41952.0,8.595e-05]
[1642682908126,0.43071618,41954.0,41952.0,8.595e-05]
[1642682908346,0.32089834,41953.0,41952.0,8.595e-05]
[1642682909122,0.33689834,41953.0,41952.0,8.595e-05]
[1642682910376,0.42089834,41953.0,41952.0,8.595e-05]